bitfinex-derivatives/quotes_BTCF0:USTF0_20251216
["timestamp","ask_amount","ask_price","bid_price","bid_amount"]
[1765869062751,0.00231662,86522.0,86521.0,0.46645405]
[1765869063558,0.08841662,86522.0,86521.0,0.46645405]
[1765869070452,0.00231662,86522.0,86521.0,0.46645405]
[1765869070856,0.04587662,86522.0,86521.0,0.46645405]
[1765869071057,0.00231662,86522.0,86521.0,0.46645405]
[1765869073568,0.00010627,86526.0,86525.0,0.1010998]
[1765869073769,0.00017328,86530.0,86529.0,0.1010993]
[1765869075159,0.08627328,86530.0,86529.0,0.1010993]
[1765869075558,0.1243498,86525.0,86524.0,0.44668]
[1765869075760,0.11279,86525.0,86524.0,0.53622]
[1765869075967,0.11279,86525.0,86524.0,0.17542]
[1765869076367,0.0861,86525.0,86524.0,0.17542]
[1765869077969,0.08627328,86530.0,86529.0,0.08954]
[1765869078165,0.04373328,86530.0,86529.0,0.08954]
[1765869078561,0.08627328,86530.0,86529.0,0.08954]
[1765869085168,0.00017328,86530.0,86529.0,0.08954]
[1765869086166,0.04373328,86530.0,86529.0,0.08954]
[1765869086481,0.08627328,86530.0,86529.0,0.08954]
[1765869091578,0.00017328,86530.0,86529.0,0.08954]
[1765869092978,0.00017328,86530.0,86529.0,0.45134]
[1765869093182,0.07772,86545.0,86544.0,0.07647]
[1765869094382,0.07872,86545.0,86544.0,0.07647]
[1765869094881,0.001,86545.0,86544.0,0.07647]
[1765869095178,0.0892763,86552.0,86551.0,0.07647]
[1765869096370,0.0902763,86552.0,86551.0,0.07647]
[1765869097274,0.0892763,86552.0,86551.0,0.07647]
[1765869099482,0.0892763,86552.0,86547.0,0.0115568]
[1765869099692,0.0892768,86548.0,86547.0,0.0880268]
[1765869102389,0.07772,86548.0,86547.0,0.07647]
[1765869108589,0.0892768,86548.0,86547.0,0.07647]
[1765869108789,0.1126068,86548.0,86547.0,0.07647]
[1765869109893,0.07772,86541.0,86540.0,0.4488277]
[1765869111996,0.07772,86541.0,86540.0,0.4498277]
[1765869112381,0.07772,86541.0,86540.0,0.43827]
[1765869112587,0.07772,86541.0,86540.0,0.43927]
[1765869113594,0.07772,86541.0,86540.0,0.43827]
[1765869113795,0.07772,86541.0,86540.0,0.43927]
[1765869113997,0.07772,86541.0,86540.0,0.07847]
[1765869115201,0.07772,86541.0,86540.0,0.07647]
[1765869115388,0.07772,86541.0,86540.0,0.43827]
[1765869116000,0.07772,86541.0,86540.0,0.43727]
[1765869121200,0.07772,86541.0,86540.0,0.0880278]
[1765869121512,0.07772,86541.0,86540.0,0.07647]
[1765869121805,0.0892777,86541.0,86540.0,0.07647]
[1765869125404,0.07228,86537.0,86536.0,0.36097328]
[1765869125599,0.07228,86537.0,86536.0,0.43437328]
[1765869130204,0.07228,86537.0,86536.0,0.36097328]
[1765869130399,0.07228,86537.0,86536.0,0.39748328]
[1765869130800,0.07228,86537.0,86536.0,0.43437328]
[1765869133810,0.07228,86537.0,86536.0,0.45519328]
[1765869134396,0.03657,86537.0,86536.0,0.45519328]
[1765869134600,0.07228,86537.0,86536.0,0.45519328]
[1765869135505,0.07228,86537.0,86536.0,0.43437328]
[1765869135807,0.0115581,86538.0,86536.0,0.43437328]
[1765869135808,0.0115581,86538.0,86537.0,0.0734]
[1765869137001,0.0472669,86547.0,86546.0,0.0734]
[1765869137603,0.0838369,86547.0,86546.0,0.0734]
[1765869137807,0.03571,86547.0,86546.0,0.0734]
[1765869140215,0.03571,86547.0,86546.0,0.0744]
[1765869140818,0.03571,86547.0,86546.0,0.0754]
[1765869141315,0.02278,86585.0,86552.0,0.0849562]
[1765869141316,0.0115546,86564.0,86552.0,0.0849562]
[1765869141515,0.3723543,86567.0,86565.0,0.09533]
[1765869142308,0.04042,86566.0,86565.0,0.09533]
[1765869142923,0.04042,86566.0,86565.0,0.1068845]
[1765869143123,0.00385,86566.0,86565.0,0.1068845]
[1765869143419,0.00585,86566.0,86565.0,0.1068845]
[1765869143618,0.083835,86561.0,86560.0,0.3608]
[1765869143920,0.0838354,86558.0,86557.0,0.00017328]
[1765869145620,0.083837,86546.0,86545.0,0.03651]
[1765869146418,0.083837,86546.0,86545.0,0.0734]
[1765869146622,0.07228,86546.0,86545.0,0.0734]
[1765869146826,0.0481267,86549.0,86548.0,0.0734]
[1765869147017,0.0838367,86549.0,86548.0,0.0734]
[1765869147414,0.07228,86547.0,86546.0,0.03651]
[1765869147616,0.07228,86545.0,86544.0,0.4342]
[1765869147817,0.07228,86545.0,86544.0,0.8518]
[1765869148427,0.07228,86545.0,86544.0,0.87373]
[1765869148628,0.07228,86545.0,86544.0,1.17841]
[1765869148824,0.07228,86545.0,86544.0,1.17941]
[1765869149627,0.07228,86545.0,86544.0,0.4362]
[1765869149823,0.07228,86545.0,86544.0,1.15848]
[1765869150130,0.07228,86545.0,86544.0,0.4362]
[1765869150515,0.07228,86545.0,86544.0,0.002]
[1765869150720,0.07228,86545.0,86544.0,0.001]
[1765869150919,0.07228,86545.0,86544.0,0.002]
[1765869151429,0.07228,86545.0,86544.0,0.001]
[1765869151813,0.083838,86539.0,86538.0,0.63876]
[1765869152624,0.083838,86539.0,86537.0,0.72249328]
[1765869152625,0.08636,86538.0,86537.0,0.72249328]
[1765869152827,0.08636,86538.0,86537.0,0.00017328]
[1765869153632,0.08636,86538.0,86520.0,0.19828667]
[1765869153633,0.0781102,86522.0,86521.0,9.296e-05]
[1765869153930,0.4389102,86522.0,86521.0,0.03572296]
[1765869155020,0.4389102,86522.0,86521.0,0.03672296]
[1765869155846,0.4389102,86522.0,86521.0,0.03772296]
[1765869156245,0.4389102,86522.0,86513.0,0.72311592]
[1765869156246,0.0781113,86514.0,86513.0,0.00011592]
[1765869156637,0.0781113,86514.0,86513.0,0.07120592]
[1765869157345,0.01164471,86514.0,86513.0,0.09093592]
[1765869157547,0.53715667,86523.0,86513.0,0.09093592]
[1765869157548,0.24307995,86530.0,86529.0,0.07109]
[1765869157750,0.06672328,86530.0,86529.0,0.07109]
[1765869157952,0.01173248,86530.0,86529.0,0.07109]
[1765869158445,0.00022032,86530.0,86529.0,0.07109]
[1765869158642,0.00222032,86530.0,86529.0,0.07109]
[1765869158842,0.06655,86518.0,86517.0,0.07109]
[1765869159041,0.0115603,86522.0,86520.0,0.02027]
[1765869159255,0.0115603,86522.0,86521.0,0.07109]
[1765869159545,0.0781103,86522.0,86521.0,0.07109]
[1765869160549,0.0781106,86519.0,86518.0,0.3608]
[1765869160751,0.0781112,86515.0,86514.0,0.72364]
[1765869160944,0.0781112,86515.0,86514.0,0.75927]
[1765869161144,0.0781112,86515.0,86514.0,0.07109]
[1765869161750,0.06655,86514.0,86513.0,0.00011592]
[1765869161954,0.06655,86514.0,86513.0,0.07120592]
[1765869163744,0.06755,86514.0,86513.0,0.07120592]
[1765869164544,0.0115631,86501.0,86500.0,0.07109]
[1765869164756,0.0781115,86513.0,86512.0,0.07109]
[1765869165456,0.0454029,86502.0,86501.0,0.08919498]
[1765869165650,0.0454029,86502.0,86501.0,0.81303498]
[1765869166155,0.0115629,86502.0,86501.0,0.81303498]
[1765869167153,0.0115629,86502.0,86501.0,0.03563]
[1765869167457,0.06655,86501.0,86500.0,0.001]
[1765869167658,0.06655,86499.0,86498.0,0.02079147]
[1765869167861,0.06655,86499.0,86498.0,0.05642147]
[1765869168350,0.06655,86499.0,86498.0,0.09188147]
[1765869169155,0.06655,86499.0,86498.0,0.05642147]
[1765869169351,0.06655,86499.0,86498.0,0.02079147]
[1765869170144,0.08636,86499.0,86498.0,0.02079147]
[1765869170353,0.0781159,86480.0,86472.0,0.3608]
[1765869170651,0.0115647,86489.0,86457.0,0.02027]
[1765869170652,0.06672338,86488.0,86487.0,0.07109]
[1765869170853,0.03401338,86488.0,86487.0,0.07109]
[1765869171050,0.044276,86479.0,86478.0,0.07109]
[1765869171249,0.078116,86479.0,86478.0,0.07109]
[1765869171445,0.076116,86479.0,86478.0,0.07109]
[1765869173263,0.077116,86479.0,86478.0,0.07109]
[1765869173962,0.012566,86479.0,86478.0,0.07109]
[1765869174560,0.001,86479.0,86478.0,0.07109]
[1765869176151,0.001,86479.0,86478.0,0.07209]
[1765869176566,0.0115659,86480.0,86479.0,0.07109]
[1765869176766,0.04557818,86488.0,86487.0,0.07109]
[1765869177452,0.01173818,86488.0,86487.0,0.07109]
[1765869178667,0.01173818,86488.0,86484.0,0.39643]
[1765869178668,0.0979252,86485.0,86484.0,0.39643]
[1765869178861,0.0115652,86485.0,86484.0,0.43189]
[1765869179061,0.03401338,86488.0,86487.0,0.07109]
[1765869179370,0.06672338,86488.0,86487.0,0.07109]
[1765869181859,0.06655,86476.0,86475.0,0.07120771]
[1765869182058,4.704e-05,86476.0,86475.0,0.08277421]
[1765869183077,4.704e-05,86476.0,86475.0,0.08577421]
[1765869183569,4.704e-05,86476.0,86475.0,0.08477421]
[1765869183776,0.06677338,86488.0,86487.0,0.06149]
[1765869185369,0.07833818,86488.0,86487.0,0.06149]
[1765869185676,0.07933818,86488.0,86487.0,0.06149]
[1765869185979,0.08033818,86488.0,86487.0,0.06149]
[1765869186968,0.0781664,86476.0,86475.0,0.06160771]
[1765869187668,0.0442064,86476.0,86475.0,0.06160771]
[1765869187863,0.0115664,86476.0,86475.0,0.06160771]
[1765869188069,0.0442064,86476.0,86475.0,0.06160771]
[1765869188470,0.0442064,86476.0,86475.0,0.06260771]
[1765869188668,0.0781664,86476.0,86475.0,0.06360771]
[1765869189063,0.0666,86476.0,86475.0,0.06360771]
[1765869189266,0.03264,86476.0,86475.0,0.06360771]
[1765869189576,0.0666,86476.0,86475.0,0.06360771]
[1765869189767,0.0115661,86479.0,86475.0,0.00211771]
[1765869189972,0.0115661,86479.0,86478.0,0.06149]
[1765869190275,0.0115661,86479.0,86478.0,0.081]
[1765869191375,0.04479771,86479.0,86478.0,0.081]
[1765869193079,0.03323161,86479.0,86478.0,0.081]
[1765869193383,0.00017338,86488.0,86487.0,0.06149]
[1765869193680,0.00017338,86488.0,86487.0,0.4338549]
[1765869194871,0.00217338,86488.0,86487.0,0.4338549]
[1765869197993,0.06877338,86488.0,86487.0,0.42229]
[1765869200289,0.0966961,86478.0,86477.0,0.42229]
[1765869203382,0.0666,86476.0,86461.0,0.3608]
[1765869203580,0.0666,86476.0,86461.0,0.37931342]
[1765869203886,0.06765708,86476.0,86462.0,1.5]
[1765869204490,0.06765708,86476.0,86475.0,0.00111771]
[1765869205188,0.06865708,86476.0,86475.0,0.00111771]
[1765869205384,0.10176518,86476.0,86475.0,0.00111771]
[1765869205586,0.10276518,86476.0,86475.0,0.00011771]
[1765869205784,0.10276518,86476.0,86475.0,0.03079771]
[1765869205989,0.10276518,86476.0,86475.0,0.00011771]
[1765869206484,0.10276518,86476.0,86475.0,0.03079771]
[1765869206690,0.10276518,86476.0,86475.0,0.00011771]
[1765869208092,0.10176518,86476.0,86475.0,0.00011771]
[1765869208287,0.10276518,86476.0,86475.0,0.00011771]
[1765869208488,0.10376518,86476.0,86475.0,0.00011771]
[1765869209580,0.0781683,86462.0,86461.0,0.31202]
[1765869209777,0.0781683,86462.0,86458.0,0.00231328]
[1765869209778,0.0781687,86459.0,86458.0,0.03068328]
[1765869210088,0.07922578,86459.0,86458.0,0.06149328]
[1765869210582,0.07930804,86459.0,86458.0,0.06149328]
[1765869211585,0.04734804,86459.0,86458.0,0.06149328]
[1765869211801,0.01470804,86459.0,86458.0,0.06149328]
[1765869213092,0.01370804,86459.0,86458.0,0.06149328]
[1765869213289,0.04634804,86459.0,86458.0,0.06149328]
[1765869213483,0.07880804,86459.0,86458.0,0.06149328]
[1765869213681,0.07780804,86459.0,86458.0,3.28e-06]
[1765869213887,0.01270804,86459.0,86458.0,0.06834328]
[1765869216294,0.07848804,86459.0,86458.0,0.06834328]
[1765869216593,0.07848804,86459.0,86458.0,1.56934328]
[1765869216985,0.07848804,86459.0,86458.0,1.57034328]
[1765869217798,0.07848804,86459.0,86458.0,1.56834328]
[1765869218490,0.07848804,86459.0,86458.0,3.28e-06]
[1765869218491,0.37350804,86459.0,86458.0,3.28e-06]
[1765869219596,0.43928804,86459.0,86458.0,0.03513328]
[1765869220095,0.44028804,86459.0,86458.0,0.03513328]
[1765869220496,0.44128804,86459.0,86458.0,0.03513328]
[1765869220991,0.37550804,86459.0,86458.0,3.28e-06]
[1765869224097,0.37550804,86459.0,86436.0,0.0115717]
[1765869224098,0.0773509,86442.0,86441.0,0.06834]
[1765869224297,0.0773509,86442.0,86441.0,0.42914]
[1765869224486,0.0115709,86442.0,86441.0,1.92914]
[1765869224893,0.06578,86441.0,86440.0,0.01951]
[1765869225199,0.0773522,86433.0,86432.0,0.08785]
[1765869225494,0.07746991,86433.0,86432.0,1.58785]
[1765869226091,0.07852699,86433.0,86432.0,1.58785]
[1765869226901,0.08052699,86433.0,86432.0,1.58785]
[1765869227101,0.0773536,86422.0,86421.0,0.3608]
[1765869227291,0.06578,86420.0,86419.0,8.781e-05]
[1765869227496,0.78738,86420.0,86419.0,0.06842781]
[1765869228006,0.78843708,86420.0,86419.0,0.06842781]
[1765869228988,0.06683708,86420.0,86419.0,0.08000181]
[1765869229203,0.00205708,86420.0,86419.0,0.08000181]
[1765869229399,0.00205708,86420.0,86419.0,0.48000181]
[1765869229594,0.0115729,86428.0,86427.0,0.08926]
[1765869232203,0.0115729,86428.0,86427.0,0.09026]
[1765869232606,0.0115729,86428.0,86427.0,0.09126]
[1765869233004,0.00017349,86430.0,86429.0,0.06834]
[1765869234306,3.49e-06,86430.0,86429.0,0.06934]
[1765869234502,3.49e-06,86430.0,86429.0,0.07034]
[1765869238105,1.2e-06,86433.0,86432.0,0.06834]
[1765869238298,0.3608,86443.0,86442.0,0.06834]
[1765869238702,0.3608,86443.0,86442.0,0.0799109]
[1765869239300,0.3618,86443.0,86442.0,0.0799109]
[1765869240811,0.001,86443.0,86442.0,0.0799109]
[1765869241009,0.002,86443.0,86442.0,0.0799109]
[1765869245813,0.002,86443.0,86442.0,0.4407109]
[1765869248405,0.002,86443.0,86440.0,0.02092]
[1765869248406,0.1109519,86435.0,86434.0,0.4596]
[1765869248607,0.1109519,86435.0,86434.0,0.0988]
[1765869248809,0.40928,86436.0,86435.0,0.1103719]
[1765869249001,0.04848,86436.0,86435.0,0.0988]
[1765869249816,0.0115716,86437.0,86436.0,0.1103717]
[1765869250312,0.0600516,86437.0,86436.0,0.1103717]
[1765869251512,0.1109516,86437.0,86436.0,0.1103717]
[1765869251709,0.1109516,86437.0,86436.0,0.0988]
[1765869253318,0.46018,86445.0,86444.0,0.0988]
[1765869253513,0.4717505,86445.0,86444.0,0.0988]
[1765869254314,0.09938,86437.0,86436.0,0.1397916]
[1765869254614,0.46018,86437.0,86436.0,0.12822]
[1765869255510,0.46018,86437.0,86436.0,0.12922]
[1765869256308,0.46018,86437.0,86436.0,0.13022]
[1765869257721,0.46018,86437.0,86436.0,0.002]
[1765869258611,0.09938,86423.0,86422.0,0.85494]
[1765869258811,0.1109535,86423.0,86422.0,0.12822]
[1765869259414,0.1109535,86423.0,86422.0,0.0988]
[1765869259615,0.4717535,86423.0,86422.0,0.0988]
[1765869259821,0.4717535,86423.0,86422.0,0.1008]
[1765869260009,0.4717535,86423.0,86422.0,0.002]
[1765869260210,0.4717535,86423.0,86410.0,0.01692091]
[1765869260211,0.09938,86419.0,86410.0,0.01692091]
[1765869260609,0.1109563,86402.0,86401.0,0.12822]
[1765869260811,0.4717563,86402.0,86401.0,0.0988]
[1765869261309,0.47184411,86402.0,86401.0,1.5988]
[1765869262422,0.47184411,86402.0,86401.0,1.5]
[1765869262720,0.1109572,86395.0,86394.0,0.12822]
[1765869262918,0.4717572,86395.0,86394.0,0.12822]
[1765869263308,0.4717572,86395.0,86394.0,1.62822]
[1765869263918,0.46018,86395.0,86394.0,1.62822]
[1765869264111,0.4717572,86395.0,86394.0,1.62822]
[1765869264815,0.4717572,86395.0,86394.0,1.62922]
[1765869265320,0.4717572,86395.0,86394.0,1.63022]
[1765869266220,0.4717572,86395.0,86394.0,1.6008]
[1765869266626,0.4717572,86395.0,86394.0,1.63022]
[1765869272022,0.4717572,86395.0,86394.0,1.502]
[1765869273926,0.4717572,86395.0,86394.0,1.52799]
[1765869273927,0.3608,86395.0,86394.0,1.52799]
[1765869274933,0.44993,86395.0,86394.0,1.52799]
[1765869276133,0.40408,86395.0,86394.0,1.52799]
[1765869277526,0.4615072,86395.0,86394.0,1.52799]
[1765869283850,0.4615072,86395.0,86394.0,1.502]
[1765869286549,0.4615072,86395.0,86394.0,0.002]
[1765869286749,0.8223072,86395.0,86394.0,0.002]
[1765869287354,0.1007082,86388.0,86387.0,0.06197095]
[1765869287558,0.4615082,86388.0,86387.0,0.09352]
[1765869288453,0.4615082,86388.0,86387.0,0.09752]
[1765869288660,0.4615082,86388.0,86387.0,0.004]
[1765869288958,0.49467935,86388.0,86387.0,0.002]
[1765869289158,0.49467935,86388.0,86387.0,0.003]
[1765869290160,0.49467935,86388.0,86387.0,0.002]
[1765869290657,0.49467935,86388.0,86387.0,0.001]
[1765869290963,0.100709,86382.0,86381.0,1.5]
[1765869291263,0.49476796,86382.0,86381.0,1.5]
[1765869292255,0.1007094,86379.0,86378.0,0.00231542]
[1765869292453,0.13388055,86379.0,86378.0,0.00231542]
[1765869292854,0.100711,86367.0,86366.0,0.09360975]
[1765869293053,0.461511,86367.0,86366.0,0.09360975]
[1765869293251,0.85568114,86367.0,86366.0,8.975e-05]
[1765869293461,1.51948114,86367.0,86366.0,0.04612975]
[1765869293862,1.58264114,86367.0,86366.0,0.11959975]
[1765869294249,1.58264114,86367.0,86366.0,0.09360975]
[1765869294560,1.58264114,86367.0,86366.0,0.09460975]
[1765869294760,1.58264114,86367.0,86366.0,0.12159975]
[1765869294966,0.85568114,86367.0,86366.0,0.12159975]
[1765869295154,0.822311,86367.0,86366.0,0.12159975]
[1765869296354,0.822311,86367.0,86366.0,0.04812975]
[1765869296560,0.822311,86367.0,86366.0,0.09560975]
[1765869296762,0.822311,86367.0,86366.0,0.12159975]
[1765869301068,0.3608,86367.0,86366.0,0.12159975]
[1765869301659,0.3608,86367.0,86366.0,0.52159975]
[1765869301660,0.29458,86367.0,86366.0,0.52159975]
[1765869301859,0.00017359,86390.0,86381.0,0.09352]
[1765869302058,0.0115785,86386.0,86381.0,0.4658991]
[1765869302259,0.0115781,86389.0,86381.0,0.4658991]
[1765869302461,0.00017359,86390.0,86381.0,0.4658991]
[1765869302462,0.0115784,86387.0,86381.0,0.4658991]
[1765869302867,0.01175149,86390.0,86381.0,0.4658991]
[1765869303069,0.00017359,86390.0,86381.0,0.4658991]
[1765869303658,0.00208781,86382.0,86381.0,0.4658991]
[1765869303862,0.008839,86393.0,86392.0,0.08217]
[1765869304163,0.443639,86399.0,86398.0,0.08217]
[1765869304369,0.4402157,86399.0,86398.0,0.08217]
[1765869304873,0.0115767,86399.0,86398.0,0.44297]
[1765869305377,0.0115764,86402.0,86401.0,0.1064]
[1765869306070,0.00017359,86407.0,86406.0,0.08217]
[1765869306266,0.00017359,86407.0,86406.0,0.44297]
[1765869307579,0.00117359,86407.0,86406.0,0.44297]
[1765869309081,0.00217359,86407.0,86406.0,0.44297]
[1765869317287,0.08617359,86407.0,86406.0,0.44297]
[1765869317482,0.08617359,86407.0,86406.0,0.08217]
[1765869317790,0.02419,86406.0,86390.0,0.00017359]
[1765869318286,0.02419,86406.0,86391.0,0.08217]
[1765869318287,0.0955778,86392.0,86391.0,0.08217]
[1765869319676,0.0955778,86392.0,86391.0,0.08317]
[1765869320480,0.0955778,86392.0,86391.0,0.08417]
[1765869320982,0.0955778,86392.0,86391.0,0.08317]
[1765869321190,0.0955778,86392.0,86391.0,0.08217]
[1765869325386,0.4563766,86400.0,86399.0,0.08217]
[1765869326882,0.4563766,86400.0,86390.0,0.08234359]
[1765869326883,0.0955778,86391.0,86390.0,0.08234359]
[1765869327987,0.0955778,86391.0,86390.0,0.08334359]
[1765869331098,0.0955778,86391.0,86390.0,0.04181359]
[1765869331794,0.0955778,86391.0,86390.0,0.08334359]
[1765869332600,0.0955778,86391.0,86390.0,0.00117359]
[1765869335403,0.4563778,86391.0,86390.0,0.00117359]
[1765869336102,0.1373601,86374.0,86373.0,0.48172]
[1765869336297,0.137361,86367.0,86366.0,0.05880975]
[1765869336602,0.137361,86367.0,86366.0,0.12100975]
[1765869336999,0.137361,86367.0,86366.0,8.975e-05]
[1765869337597,0.137361,86367.0,86366.0,0.00108975]
[1765869337803,0.170573,86352.0,86351.0,0.48172]
[1765869339005,0.17066275,86352.0,86351.0,0.05872]
[1765869339803,0.17066275,86352.0,86351.0,0.06172]
[1765869340193,0.17066275,86352.0,86351.0,0.005]
[1765869345208,0.1373641,86344.0,86343.0,0.3608]
[1765869345506,0.1373648,86339.0,86338.0,0.06103649]
[1765869345805,0.1373648,86339.0,86338.0,0.00231649]
[1765869346016,0.1373668,86324.0,86323.0,0.12092]
[1765869346212,0.13745655,86324.0,86323.0,0.12092]
[1765869346508,0.12586975,86324.0,86323.0,0.12092]
[1765869346713,0.13745655,86324.0,86323.0,0.12092]
[1765869347011,0.13445655,86324.0,86323.0,0.12092]
[1765869347613,0.13445655,86324.0,86323.0,0.12292]
[1765869348214,0.13445655,86324.0,86323.0,0.12392]
[1765869348808,0.13445655,86324.0,86323.0,0.003]
[1765869349213,0.1373673,86320.0,86298.0,0.36311756]
[1765869349404,0.4981673,86320.0,86300.0,0.01159]
[1765869349606,0.4981673,86320.0,86311.0,0.01517554]
[1765869350812,0.4981673,86320.0,86319.0,0.00111401]
[1765869351012,0.4981673,86320.0,86306.0,0.01535604]
[1765869351013,0.137369,86307.0,86306.0,0.01535604]
[1765869351415,0.136369,86307.0,86306.0,0.13627604]
[1765869351815,0.136369,86307.0,86306.0,0.12092]
[1765869352210,0.011589,86307.0,86306.0,0.13584894]
[1765869352421,0.011589,86307.0,86306.0,0.13784894]
[1765869353116,0.011589,86307.0,86306.0,0.13584894]
[1765869353314,0.137369,86307.0,86306.0,0.13584894]
[1765869354921,0.0115885,86312.0,86311.0,0.12092]
[1765869355126,0.16207975,86324.0,86323.0,0.12092]
[1765869355923,0.16207975,86324.0,86323.0,0.05872]
[1765869356111,0.17366655,86324.0,86323.0,0.05872]
[1765869356312,0.12578,86314.0,86313.0,0.48172]
[1765869356923,0.0115901,86299.0,86298.0,0.00231756]
[1765869357118,0.37250119,86299.0,86298.0,0.00231756]
[1765869358509,0.45080119,86299.0,86298.0,0.00231756]
[1765869359119,0.45280119,86299.0,86298.0,6e-08]
[1765869359320,0.45580119,86299.0,86298.0,6e-08]
[1765869360620,0.41625119,86299.0,86298.0,0.12092006]
[1765869360821,0.37750119,86299.0,86298.0,0.12092006]
[1765869361222,0.45473119,86299.0,86298.0,0.12092006]
[1765869361428,0.37750119,86299.0,86298.0,6e-08]
[1765869361923,0.37750119,86299.0,86278.0,0.0115928]
[1765869361924,0.0878823,86283.0,86282.0,0.15683]
[1765869363429,0.0888823,86283.0,86282.0,0.15683]
[1765869364119,0.0888823,86283.0,86282.0,0.15783]
[1765869365214,0.0888823,86283.0,86282.0,0.15683]
[1765869365422,0.0918823,86283.0,86282.0,0.15683]
[1765869366515,0.0533423,86283.0,86282.0,0.15683]
[1765869367521,0.0523423,86283.0,86282.0,0.15683]
[1765869367724,0.0907723,86283.0,86282.0,0.15683]
[1765869368124,0.0543423,86283.0,86282.0,0.15683]
[1765869368323,0.0513423,86283.0,86282.0,0.15683]
[1765869368620,0.0543423,86283.0,86282.0,0.15683]
[1765869368829,0.0523423,86283.0,86282.0,0.15683]
[1765869369022,0.0513423,86283.0,86282.0,0.15683]
[1765869369223,0.0543423,86283.0,86282.0,0.15683]
[1765869369428,0.005,86283.0,86282.0,0.15683]
[1765869370729,0.3608,86291.0,86290.0,0.1531]
[1765869371033,0.36091109,86299.0,86289.0,0.04653]
[1765869371034,0.37250119,86299.0,86298.0,0.1531]
[1765869371331,0.4057772,86299.0,86298.0,0.87126]
[1765869371524,0.4394972,86299.0,86298.0,0.87126]
[1765869371925,0.4394972,86299.0,86298.0,0.1531]
[1765869372121,0.4394972,86299.0,86298.0,0.8815]
[1765869372431,0.4107772,86299.0,86298.0,0.8815]
[1765869372628,0.0383871,86299.0,86298.0,0.8815]
[1765869372832,0.00511109,86299.0,86298.0,0.8815]
[1765869373037,0.0001738,86307.0,86306.0,0.1646892]
[1765869373233,0.0001738,86307.0,86303.0,0.04653]
[1765869373234,0.0115873,86320.0,86318.0,0.1531]
[1765869373530,0.0919464,86327.0,86326.0,0.1531]
[1765869374031,0.16569907,86327.0,86326.0,0.1531]
[1765869374235,0.09203907,86327.0,86326.0,0.1531]
[1765869375032,0.00394267,86327.0,86326.0,0.1531]
[1765869375230,0.01194267,86327.0,86326.0,0.1541]
[1765869375639,0.01194267,86327.0,86326.0,0.1656865]
[1765869376925,0.0117591,86335.0,86334.0,0.1531]
[1765869377133,0.0001738,86335.0,86334.0,0.88142]
[1765869378231,0.0051738,86335.0,86334.0,0.88142]
[1765869378431,0.0101738,86335.0,86334.0,0.88242]
[1765869379438,0.0081738,86335.0,86334.0,0.89651526]
[1765869379632,0.0031738,86335.0,86334.0,0.89651526]
[1765869379827,0.0051738,86335.0,86334.0,0.89651526]
[1765869382033,0.0051738,86335.0,86334.0,0.88142]
[1765869382739,0.1553438,86335.0,86334.0,0.1531]
[1765869382947,0.1553438,86335.0,86334.0,0.8811]
[1765869384042,0.0816838,86335.0,86334.0,0.8811]
[1765869384343,0.1553438,86335.0,86334.0,0.8811]
[1765869385945,0.1553438,86335.0,86334.0,0.1531]
[1765869386544,0.1617566,86325.0,86324.0,0.1531]
[1765869386839,0.5225566,86325.0,86324.0,0.1531]
[1765869387035,0.5225566,86325.0,86324.0,0.60526]
[1765869387737,0.5225566,86325.0,86324.0,0.83546]
[1765869388740,0.5235566,86325.0,86324.0,0.1531]
[1765869389234,0.1617574,86319.0,86307.0,0.3608]
[1765869389550,0.1617574,86319.0,86318.0,0.1532738]
[1765869390750,0.1617574,86319.0,86318.0,0.1542738]
[1765869390948,0.0880974,86319.0,86318.0,0.1658614]
[1765869391351,0.0880974,86319.0,86318.0,0.1648614]
[1765869391744,0.0890974,86319.0,86318.0,0.1648614]
[1765869391941,0.0125874,86319.0,86318.0,0.1542738]
[1765869392343,0.0125874,86319.0,86318.0,0.8821538]
[1765869392542,0.0115874,86319.0,86318.0,0.8821538]
[1765869393548,0.0880974,86319.0,86318.0,0.8821538]
[1765869393757,0.1655174,86319.0,86318.0,0.8821538]
[1765869393951,0.1655174,86319.0,86318.0,0.8811538]
[1765869394143,0.1655174,86319.0,86318.0,0.8821538]
[1765869394454,0.1655174,86319.0,86318.0,0.1542738]
[1765869394653,0.1655174,86319.0,86318.0,0.5510738]
[1765869395944,0.1655174,86319.0,86318.0,0.8820738]
[1765869396355,0.1655174,86319.0,86318.0,0.8820338]
[1765869396852,0.1655174,86319.0,86318.0,0.1542738]
[1765869397052,0.1655174,86319.0,86318.0,0.5497538]
[1765869397252,0.1655174,86319.0,86318.0,0.5487538]
[1765869397458,0.1655174,86319.0,86318.0,0.5497538]
[1765869397854,0.1655174,86319.0,86318.0,0.5487538]
[1765869398051,0.1655174,86319.0,86318.0,0.5497538]
[1765869398362,0.3608,86325.0,86324.0,0.20905]
[1765869398655,0.3723866,86325.0,86324.0,0.20905]
[1765869398857,0.4551566,86325.0,86324.0,0.20905]
[1765869399058,0.5325766,86325.0,86324.0,0.20905]
[1765869399760,0.5345766,86325.0,86324.0,0.20905]
[1765869400859,0.4571566,86325.0,86324.0,0.20905]
[1765869401055,0.3743866,86325.0,86324.0,0.20905]
[1765869401656,0.4561566,86325.0,86324.0,0.20905]
[1765869402050,0.3733866,86325.0,86324.0,0.20905]
[1765869402661,0.4561566,86325.0,86324.0,0.20905]
[1765869404261,0.5335766,86325.0,86324.0,0.20905]
[1765869405954,0.5335766,86325.0,86324.0,0.93649]
[1765869407165,0.1717774,86319.0,86318.0,0.0786338]
[1765869407366,0.1717774,86319.0,86318.0,0.8900738]
[1765869407561,0.1717774,86319.0,86318.0,0.1627138]
[1765869409162,0.1727774,86319.0,86318.0,0.1627138]
[1765869409561,0.1727774,86319.0,86318.0,0.0001738]
[1765869410062,0.1727774,86319.0,86318.0,0.0011738]
[1765869410669,0.1727774,86319.0,86318.0,0.0001738]
[1765869411859,0.1717774,86319.0,86318.0,0.0001738]
[1765869412057,0.1737774,86319.0,86318.0,0.0001738]
[1765869414863,0.1717789,86308.0,86307.0,0.17763818]
[1765869415065,0.5325789,86308.0,86307.0,0.17763818]
[1765869416466,0.5325789,86308.0,86307.0,0.17863818]
[1765869417668,0.5335789,86308.0,86307.0,0.17863818]
[1765869419469,0.5335789,86308.0,86307.0,0.001]
[1765869419763,0.5335789,86308.0,86307.0,0.16354]
[1765869420171,0.5325789,86308.0,86307.0,0.16354]
[1765869420366,0.5335789,86308.0,86307.0,0.16354]